Cogmind - Beta 13 @@@ ROGUE MODE // 2024.04.08 @ 01:06:34 Player: Miwa Result: Self-destructed Performance ------------- Evolutions (1) 500 Regions Visited (2) 400 Robots Destroyed (12) 60 Value Destroyed (222) 222 Prototype IDs (0) 0 Alien Tech Used (0) 0 Bonus (0) 0 TOTAL SCORE: 1182 Bonus ------- None Cogmind --------- Core Integrity 356/400 Matter 203/300 Energy 54/125 System Corruption 0% Temperature Hot (205) Movement Hovering (60) Location -9/Materials Parts ------- > --- POWER (1) -------- Light Ion Engine > --- PROPULSION (3) --- Hover Unit > --- UTILITY (3) ------ Weight Redist. System > --- WEAPON (2) ------- Medium Laser > --- INVENTORY (5) ---- Light Ion Engine Hover Unit Assault Rifle Rocket Launcher Peak State ------------ > --- POWER ------------ Light Ion Engine > --- PROPULSION ------- Light Treads Light Treads > --- UTILITY ---------- Small Storage Unit Shield Generator > --- WEAPON ----------- Rocket Launcher Rocket Launcher > --- INVENTORY -------- Light Ion Engine Aluminum Leg Aluminum Leg Cooling System Shield Generator Small Laser Assault Rifle Rocket Launcher [Rating: 11] Favorites ----------- Power Light Ion Engine Engine Light Ion Engine Propulsion Hover Unit Treads Light Treads Hover Unit Hover Unit Utility Shield Generator Device Shield Generator Storage Small Storage Unit Weapon Rocket Launcher Energy Gun Medium Laser Ballistic Gun Assault Rifle Launcher Rocket Launcher Build | -11 -10 -9 ------- Run | Yrd Mat Mat Slots Evolved 2 | . . 2 Power . | . . . Propulsion 1 | . . 1 Utility 1 | . . 1 Weapon . | . . . Parts Attached 15 | 6 8 1 Power 1 | 1 . . Engine 1 | 1 . . Core . | . . . Reactor . | . . . Propulsion 5 | 2 2 1 Treads 2 | 2 . . Leg . | . . . Wheel . | . . . Hover 3 | . 2 1 Flight . | . . . Utility 3 | 1 2 . Device 2 | . 2 . Storage 1 | 1 . . Processor . | . . . Hackware . | . . . Protection . | . . . Artifact . | . . . Weapon 6 | 2 4 . Energy Gun 2 | 1 1 . Energy Cannon . | . . . Ballistic Gun 2 | 1 1 . Ballistic Cannon . | . . . Launcher 2 | . 2 . Special Weapon . | . . . Impact Weapon . | . . . Slashing Weapon . | . . . Piercing Weapon . | . . . Special Melee Weapon . | . . . Unidentified Prototypes . | . . . Parts Lost 4 | . . 4 Power . | . . . Propulsion 2 | . . 2 Utility 1 | . . 1 Weapon 1 | . . 1 Highest Loss Streak 4 | . . 4 To Critical Strikes . | . . . Average Slot Usage (%) 92 | . 96 87 Engine 12 | . 14 11 Treads 9 | . 15 . Hover 20 | . 12 33 Device 18 | . 16 21 Storage 4 | . 7 . Energy Gun 8 | . 7 11 Ballistic Gun 1 | . 2 . Launcher 15 | . 18 11 Naked Turns . | . . . Heaviest Build 18 | 11 18 11 Greatest Support 40 | 40 40 24 Greatest Overweight (x) 4 | . 4 . Average Overweight (x) . | . . . Largest Inventory Capacity 8 | 8 8 5 Average Capacity 6 | 6 6 5 Most Carried 8 | 5 8 4 Average Carried 4 | 2 5 4 Final Capacity 8 | 8 5 5 Final Carried 5 | 3 5 4 Class Distribution -------------------- 100% | Mutant Dominant Class ---------------- Mutant | -10/Materials Mutant | -9/Materials Resources | -11 -10 -9 ----------- Run | Yrd Mat Mat Matter Collected 431 | 261 9 161 Remotely . | . . . Salvage Created 155 | . 37 118 Parts 25 | . 15 10 Haulers Intercepted . | . . . Recyclers Shooed . | . . . Parts Field Recycled . | . . . Retrieved Matter . | . . . Parts Self-Destructed . | . . . Prevented . | . . . Kills | -11 -10 -9 ------- Run | Yrd Mat Mat Combat Hostiles Destroyed 8 | . 6 2 Guns 1 | . . 1 AOE 7 | . 6 1 Classes Destroyed 5 | . 3 2 Builder 1 | . 1 . Watcher 3 | . 1 2 Swarmer 6 | . 6 . Grunt 1 | . . 1 Sentry 1 | . . 1 Best Kill Streak 5 | . 5 3 Combat Bots Only 3 | . 3 2 Max Kills in Single Turn 3 | . 3 2 Gunslinging . | . . . Exploded 2 | . 2 1 Melee . | . . . Uniques/NPCs Destroyed . | . . . Combat | -11 -10 -9 -------- Run | Yrd Mat Mat Hostile Shots Fired 50 | . 12 38 Missed 21 | . 8 13 Damage Taken 318 | . 43 275 Core 44 | . . 44 Absorbed by Shields 56 | . 17 39 Core Remaining (%) 100 | 100 100 . Volleys Fired 35 | 3 7 25 Largest 2 | 2 2 2 Hottest 83 | 60 66 83 Shots Fired 45 | 6 13 26 Gun 27 | 6 1 20 Cannon . | . . . Launcher 18 | . 12 6 Special . | . . . Kinetic 3 | 3 . . Thermal 24 | 3 1 20 Explosive 18 | . 12 6 Electromagnetic . | . . . Robot Hit Streak 5 | 5 4 5 Robot Miss Streak 4 | 1 4 3 Penetration Max . | . . . Secondary Targets . | . . . Shots Hit Robots 23 | 5 4 14 Core Hits 15 | . 7 8 Critical Kills . | . . . Critical Parts Destroyed . | . . . Critical Strikes 2 | . . 2 Burn 2 | . . 2 Melee Attacks . | . . . Impact . | . . . Slashing . | . . . Piercing . | . . . Sneak Attacks . | . . . Combat Hostiles . | . . . Follow-up Attacks . | . . . Damage Inflicted 915 | 57 620 238 Guns 229 | 57 12 160 Cannons . | . . . Explosions 683 | . 608 75 Melee . | . . . Ramming 3 | . . 3 Kinetic 24 | 24 . . Thermal 205 | 33 12 160 Explosive 683 | . 608 75 Electromagnetic . | . . . Impact . | . . . Slashing . | . . . Piercing . | . . . Highest Corruption . | . . . Average Corruption . | . . . Corruption Purged . | . . . Corruption Blocked . | . . . Overload Shots . | . . . Overflow Damage 67 | . 67 . Projectiles . | . . . Explosions 67 | . 67 . Melee . | . . . Knockbacks . | . . . Impact . | . . . Kinetic . | . . . Secondary . | . . . Self-Inflicted Damage 49 | . 26 23 Shots 2 | . 1 1 Rammed 2 | . . 2 Targets Rammed 2 | . . 2 Kicked . | . . . Crushed . | . . . Highest Temperature 237 | . 18 237 Average Temperature 62 | . 8 84 Received Heat Transfer 126 | . . 126 Effects 1 | . . 1 Interference 1 | . . 1 Siege Activations . | . . . Robots Corrupted . | . . . Combat Hostiles . | . . . Parts Fried . | . . . Impact Corruptions . | . . . Robots Melted . | . . . Combat Hostiles . | . . . Parts Melted 3 | . . 3 Heat Transferred 741 | 75 37 629 Parts Sabotaged . | . . . Parts Stolen . | . . . Parts Stripped . | . . . Power Chain Reactions . | . . . Alert | -11 -10 -9 ------- Run | Yrd Mat Mat Peak Influence 241 | . 230 241 Initial 46 | . . 46 Average 80 | . 76 131 Maximum Alert Level 1 | . 1 1 Low Security (%) 91 | 100 92 84 Level 1 8 | . 7 15 Level 2 . | . . . Level 3 . | . . . Level 4 . | . . . Level 5 . | . . . High Security . | . . . Max Security . | . . . Squads Dispatched . | . . . Investigation . | . . . Extermination . | . . . Reinforcement . | . . . Assault . | . . . Garrison . | . . . Intercept . | . . . Searches Triggered . | . . . Construction Impeded . | . . . Haulers Reinforced . | . . . Active Scanning Responses . | . . . Cargo Convoy Interrupts . | . . . Stealth | -11 -10 -9 --------- Run | Yrd Mat Mat Distress Signals 5 | . . 5 Communications Jammed . | . . . Distress Signals . | . . . Times Spotted 18 | . 7 11 Peak Tracking Total 11 | . 3 11 Tactical Retreats 2 | . 1 1 Traps | -11 -10 -9 ------- Run | Yrd Mat Mat Traps Triggered . | . . . Indirectly . | . . . Trap Hack Attempts . | . . . Triggered . | . . . Disarmed . | . . . Reprogrammed . | . . . Reused . | . . . Traps Extracted . | . . . Installed . | . . . Triggered . | . . . Machines | -11 -10 -9 ---------- Run | Yrd Mat Mat Machines Disabled 3 | . 1 2 Max in Single Turn 1 | . 1 1 Machines Repaired . | . . . Machines Dismantled . | . . . Machines Sabotaged . | . . . Overloaded Fab Kills . | . . . Hacking | -11 -10 -9 --------- Run | Yrd Mat Mat Machines Accessed 2 | . 1 1 Terminals 2 | . 1 1 Fabricators . | . . . Repair Stations . | . . . Recycling Units . | . . . Scanalyzers . | . . . Garrison Access . | . . . Total Hacks 4 | . 2 2 Successful 3 | . 2 1 Failed 1 | . . 1 Catastrophic . | . . . Database Lockouts . | . . . Manual 3 | . 1 2 Terminals 4 | . 2 2 Fabricators . | . . . Repair Stations . | . . . Recycling Units . | . . . Scanalyzers . | . . . Garrison Access . | . . . Terminal Hacks 3 | . 2 1 Branch Access Points 1 | . . 1 Alert Level 1 | . 1 . Unreport Threat 1 | . 1 . Fabricator Hacks . | . . . Repair Station Hacks . | . . . Recycling Unit Hacks . | . . . Scanalyzer . | . . . Garrison Access Hacks . | . . . Unauthorized Hacks . | . . . Terminals . | . . . Fabricators . | . . . Repair Stations . | . . . Recycling Units . | . . . Scanalyzers . | . . . Garrison Access . | . . . Data Cores Recovered . | . . . Used . | . . . Hacking Detections 2 | . 1 1 Full Trace Events . | . . . Feedback Events . | . . . Feedback Blocked . | . . . Robot Schematics Acquired . | . . . Robots Built . | . . . Authchips . | . . . Time . | . . . Total Robot Build Rating . | . . . Part Schematics Acquired . | . . . Parts Built . | . . . Authchips . | . . . Time . | . . . Total Part Build Rating . | . . . Parts Repaired . | . . . Time . | . . . Parts Recycled . | . . . Recycled Matter . | . . . Retrieved Matter . | . . . Retrieved Components . | . . . Parts Scanalyzed . | . . . Part Schematics Acquired . | . . . Parts Damaged . | . . . Bothacking | -11 -10 -9 ------------ Run | Yrd Mat Mat Used RIF Installer . | . . . Robots Hacked . | . . . Non-combat . | . . . Combat . | . . . Robot Hacks Applied . | . . . Relay Couplers Released . | . . . Fabnet Peak Effective % . | . . . Robots Rewired . | . . . Allies Hacked . | . . . Hacks Repelled . | . . . Allies | -11 -10 -9 -------- Run | Yrd Mat Mat Total Allies . | . . . Largest Group . | . . . Highest-Rated Group . | . . . Highest-Rated Ally . | . . . Total Orders . | . . . Ally Attacks . | . . . Total Damage . | . . . Kills . | . . . Allies Corrupted . | . . . Allies Melted . | . . . Intel | -11 -10 -9 ------- Run | Yrd Mat Mat Robot Analysis Total . | . . . Derelict Logs Recovered . | . . . Drone Launches . | . . . Drone Recoveries . | . . . Exploration | -11 -10 -9 ------------- Run | Yrd Mat Mat Turns Passed 467 | 86 233 148 Spaces Moved 439 | 50 220 169 Core 16 | 15 1 . Treads 94 | 35 59 . Legs . | . . . Wheels . | . . . Hover 329 | . 160 169 Flight . | . . . Fastest Speed 50 | 50 56 52 Average Speed 77 | 127 85 52 Slowest Speed 250 | 160 250 52 Overloaded Moves . | . . . Propulsion Burnouts . | . . . Robots Hopped . | . . . Cave-ins Triggered . | . . . Exploration Rate (%) 20 | 3 44 14 Regions Visited 2 Branch Regions . Pre-discovered Areas . | . . . Known Exits Taken . | . . . Unknown Exits Taken 2 | 1 1 . Scrap Searched . | . . . Spaces Dug 59 | . . 59 Terrain Destroyed 148 | . 70 78 Melee . | . . . Projectile . | . . . AOE 148 | . 70 78 Terrain Rammed . | . . . Walls Destroyed . | . . . Machines Disabled . | . . . Actions | -11 -10 -9 --------- Run | Yrd Mat Mat Total 520 | 66 252 202 Wait 5 | . . 5 Move 437 | 49 219 169 Hop . | . . . Pick Up 17 | 8 9 . Fast Attach 4 | 1 3 . Attach 7 | 5 1 1 Detach . | . . . Swap 4 | . 4 . Drop 9 | . 9 . Fire 35 | 3 7 25 Melee . | . . . Ram 2 | . . 2 Kick . | . . . Crush . | . . . Escape Stasis . | . . . Rewire . | . . . Trap . | . . . Miscellaneous . | . . . Route ------- -11/Scrapyard -10/Materials -9/Materials (discovered 2 exits: Min x2) History --------- Turn | Location | Event 27 | -11/Scrapyard | Discovered new exit (range 16) 87 | -11/Scrapyard | Entered Materials 242 | -10/Materials | Discovered new exit (range 15) 316 | -10/Materials | Build established: Mutant 320 | -10/Materials | Entered another Materials area 320 | -9/Materials | Evolved 2 slots: Propulsion x1, Utility x1 343 | -9/Materials | Identified exit to Mines 468 | -9/Materials | Self-destructed Last Messages --------------- K-01 Serf collects debris. U-05 Engineer lays Concrete. Hover Unit destroyed. U-05 Engineer lays Concrete. U-05 Engineer destroyed. U-05 Engineer lays Concrete. K-01 Serf collects debris. U-05 Engineer lays Concrete. R-06 Scavenger collects Lgt. Treads. Overheating: System interference. Med. Laser temporarily disabled. K-01 Serf collects debris. U-05 Engineer lays Concrete. Hover Unit destroyed. U-05 Engineer lays Concrete. Slammed into G-34 Mercenary. Rocket Launcher destroyed. U-05 Engineer lays Concrete. R-06 Scavenger collects Aluminum Leg. U-05 Engineer builds a Wall. Map ----- +----------------------------------------------------+ | | | | | | | | | | | | | | | | | | | | | ?????????????????????????????????????????????????? | | ???????????????????????#######???????????????????? | | ?????????###########???#] ?##########???????? | | ?????????#! #???# """"" # #???????? | | ?????????# ##### """"" # #???????? | | ?????????# """"""" # # """"" # #???????? | | ?????????# """"""" # # # #???????? | | ?????????# """"""" # # """ # #???????? | | ?????????# """"""" + + """ # #???????? | | ?????????# """"""" # # """ # #???????? | | ?????????# # # # ] #???????? | | ?????????########### ########## ! #???????? | | ??????#### # # ###+#######???????? | | ???## # ## # uk ! #??????????? | | ???# ## g % u #??????????? | | ???## # # @grk * g #??????????? | | ???# # # # % %#### #??????????? | | ???# # # ##########! =#??# #??????????? | | ???# #???????# #??# #??????????? | | ???## # #???????# #??# #??????????? | | ????#### " ##??????# #??# #?????????" | | ???????# "######## ######## #??# #### """ | | ???????# # ! # #??# / S" | | ???????##### # ## # #####/##### [! | | ???????????####### """ # # ! #?????? | | ?????????????????# ! """ # # #???????? | | ?????????????????# ! """ + # ! #???????? | | ?????????????????# """ # # #???????? | | ?????????????????# """ # # #???????? | | ?????????????????# ] # # #???????? | | ?????????????????########### # ###### | | ???????????????????????????# # / | | ???????????????????????????# ################ | | ???????????????????????????# #?????????????????? | | ???????????????????????????# #?????????????????? | | ???????????????????????????# #?????????????????? | | ???????????????????????????#*!!#?????????????????? | | ???????????????????????????##%##?????????????????? | | ????????????????????????????#!#??????????????????? | | ????????????????????????????? ???????????????????? | +----------------------------------------------------+ Best States ------------- Heat Dissipation 28 Energy Generation 10 Energy Capacity 125 Matter Stores 292 Matter Capacity 300 Sight Range 16 Terrain Scan Density 10 Additional Mass Support 6 Evasion (%) 54 Recoil Reduction 2 Item Schematics ----------------- None Robot Schematics ------------------ None Fabricated ------------ Nothing Alien Tech Used ----------------- None Achievements -------------- None Challenges ------------ None Game ------ Seed EfficiencyRegenerativeRipper Manual? 0 Play Time 00:13:50 Cumulative 24.5 hours Start 2024.04.08 @ 00:55:02 End 2024.04.08 @ 01:06:34 Sessions 1 Manual Loads 0 Difficulty Rogue Special Mode None Game No. 39 Rogue 39 Adventurer 0 Explorer 0 Win Type - Total 0 Types 0/0/0/0/0/0/0/0/0 Lore% 24 Gallery% 25 Achievement% 25 Wizard Run 0 Options --------- Layout 1 ASCII 0 Keyboard 0 Movement Mouse Keybinds 0 Fullscreen 1 Font 28/SmallcapsGlow Map View 55x47 Zoom Use 0% Tactical HUD 0 Map Filters NONE Filters NONE Steam 1 RUN: 44c40495-b3fd-42bf-9eef-e965af77b4c7